bitfinex/quotes_BTCUSD_20251110
["timestamp","ask_amount","ask_price","bid_price","bid_amount"]
[1762802823448,0.00023468,105830.0,105820.0,0.90082475]
[1762802823729,1e-08,105830.0,105820.0,0.90082475]
[1762802823937,1e-08,105830.0,105820.0,0.90182475]
[1762802824316,1e-08,105830.0,105820.0,1.22420401]
[1762802825314,1e-08,105830.0,105820.0,1.22520401]
[1762802831469,1e-08,105830.0,105820.0,0.90282475]
[1762802832007,1e-08,105830.0,105820.0,0.87442944]
[1762802832228,1e-08,105830.0,105820.0,0.85149944]
[1762802832229,0.02803001,105830.0,105820.0,0.85149944]
[1762802832464,0.06274826,105830.0,105820.0,0.19100018]
[1762802832662,0.06274826,105830.0,105820.0,0.51337944]
[1762802833301,0.06274826,105830.0,105820.0,0.51137944]
[1762802833646,0.06274826,105830.0,105820.0,0.51237944]
[1762802834592,0.0297907,105830.0,105820.0,0.52749944]
[1762802834798,0.0297907,105830.0,105820.0,0.55042944]
[1762802834976,0.0297907,105830.0,105820.0,0.52749944]
[1762802835180,0.0687707,105830.0,105820.0,0.51237944]
[1762802838216,0.07758386,105830.0,105820.0,0.51237944]
[1762802840835,0.0687707,105830.0,105820.0,0.51237944]
[1762802844697,0.0687849,105830.0,105820.0,0.51237944]
[1762802846020,0.07760136,105830.0,105820.0,0.51237944]
[1762802847914,0.05448136,105830.0,105820.0,0.51237944]
[1762802848506,0.03862136,105830.0,105820.0,0.55182944]
[1762802850665,0.0264505,105830.0,105820.0,0.55182944]
[1762802852020,0.0264505,105830.0,105820.0,0.52784944]
[1762802852620,0.0382205,105830.0,105820.0,0.52784944]
[1762802853415,0.0693958,105830.0,105820.0,0.51237944]
[1762802853624,0.0936758,105830.0,105820.0,0.51237944]
[1762802854813,0.0382205,105830.0,105820.0,0.52784944]
[1762802854983,0.02940404,105830.0,105820.0,0.55182944]
[1762802855628,0.03822368,105830.0,105820.0,0.55182944]
[1762802856037,0.02645368,105830.0,105820.0,0.55182944]
[1762802856248,0.02645519,105830.0,105820.0,0.55182944]
[1762802859458,0.02645519,105830.0,105820.0,0.52784944]
[1762802859670,0.02645519,105830.0,105820.0,0.55182944]
[1762802861726,0.02645519,105830.0,105820.0,0.52784944]
[1762802862167,0.07863519,105830.0,105820.0,0.51237944]
[1762802865050,0.07863519,105830.0,105820.0,0.83450814]
[1762802866069,0.02645519,105830.0,105820.0,0.87395814]
[1762802866225,0.02645519,105830.0,105820.0,1.19621212]
[1762802866561,0.02645519,105830.0,105820.0,1.17223212]
[1762802866993,0.02645519,105830.0,105820.0,0.84997814]
[1762802867410,0.04236081,105830.0,105820.0,0.84997814]
[1762802867610,0.04236081,105830.0,105820.0,1.17223212]
[1762802867820,0.02645519,105830.0,105820.0,1.19621212]
[1762802868210,0.02645519,105830.0,105820.0,0.87395814]
[1762802869958,0.02645519,105830.0,105820.0,1.19621212]
[1762802870897,0.02645519,105830.0,105820.0,0.87395814]
[1762802871826,0.09454084,105830.0,105820.0,0.83450814]
[1762802873711,0.09455921,105830.0,105820.0,0.83450814]
[1762802876717,0.07865356,105830.0,105820.0,0.83450814]
[1762802879530,0.02647356,105830.0,105820.0,0.87468814]
[1762802880629,0.02647356,105830.0,105820.0,1.19694212]
[1762802882878,0.02647356,105830.0,105820.0,1.51994212]
[1762802883294,0.01763404,105830.0,105820.0,1.51994212]
[1762802884249,0.07578247,105840.0,105830.0,0.83349029]
[1762802884455,0.07578247,105840.0,105830.0,1.20685427]
[1762802885561,0.07678247,105840.0,105830.0,1.20685427]
[1762802885985,1e-08,105840.0,105830.0,1.20685427]
[1762802886187,0.0004,105850.0,105840.0,0.18896447]
[1762802886400,0.0004,105850.0,105840.0,1.52983641]
[1762802888254,0.0004,105850.0,105840.0,1.55822766]
[1762802890283,0.00086923,105850.0,105840.0,1.55822766]
[1762802892986,1e-08,105850.0,105840.0,1.55822766]
[1762802893186,1e-08,105850.0,105840.0,2.5249896]
[1762802893449,1e-08,105850.0,105840.0,1.55822766]
[1762802895387,0.01130001,105850.0,105840.0,0.88801368]
[1762802895510,0.02116467,105850.0,105840.0,0.85962243]
[1762802895719,1e-08,105850.0,105840.0,0.88458243]
[1762802896215,0.01761785,105850.0,105840.0,0.88458243]
[1762802896909,0.01761725,105850.0,105840.0,0.88458243]
[1762802897760,0.01761725,105850.0,105840.0,1.20683641]
[1762802898107,0.01761725,105850.0,105840.0,1.23522793]
[1762802898308,1e-08,105850.0,105840.0,1.23522793]
[1762802898576,0.07604654,105860.0,105850.0,0.18894662]
[1762802898830,0.07604654,105860.0,105850.0,0.88456458]
[1762802899353,0.07584654,105870.0,105860.0,1.15569071]
[1762802899568,0.0846529,105870.0,105860.0,1.19587071]
[1762802899776,0.0846529,105870.0,105860.0,1.19487071]
[1762802899975,0.07584654,105870.0,105860.0,1.19387071]
[1762802900616,0.07784654,105870.0,105860.0,1.19387071]
[1762802900840,0.07884654,105870.0,105860.0,1.19387071]
[1762802901483,1e-08,105870.0,105860.0,1.19387071]
[1762802902061,1e-08,105870.0,105860.0,1.22225704]
[1762802902626,0.0004,105880.0,105870.0,0.18891092]
[1762802902829,0.00053586,105880.0,105870.0,0.88294888]
[1762802904043,0.00053586,105880.0,105870.0,0.88394888]
[1762802907377,0.00933631,105880.0,105870.0,0.88394888]
[1762802907776,0.01003986,105880.0,105870.0,0.88394888]
[1762802910431,0.02764963,105880.0,105870.0,0.88394888]
[1762802911241,0.07887963,105880.0,105870.0,0.84534888]
[1762802912150,0.03919963,105880.0,105870.0,0.88394888]
[1762802914302,0.03919963,105880.0,105870.0,0.86131888]
[1762802916365,0.06365963,105880.0,105870.0,0.86131888]
[1762802916570,0.03919963,105880.0,105870.0,0.86131888]
[1762802920284,0.03919963,105880.0,105870.0,0.88394888]
[1762802921105,0.03919963,105880.0,105870.0,0.86131888]
[1762802923342,0.03919963,105880.0,105870.0,0.88394888]
[1762802923526,0.02764963,105880.0,105870.0,0.88394888]
[1762802925055,0.02764963,105880.0,105870.0,0.8832148]
[1762802925826,0.02764963,105880.0,105870.0,1.2062148]
[1762802925827,1e-08,105880.0,105870.0,1.2062148]
[1762802925963,0.07584654,105900.0,105890.0,0.18887524]
[1762802926166,0.07584654,105900.0,105890.0,0.85954912]
[1762802926370,0.07584654,105900.0,105890.0,0.88217912]
[1762802927806,0.07684654,105900.0,105890.0,0.88217912]
[1762802928327,0.07689444,105900.0,105890.0,0.88217912]
[1762802928527,0.07689444,105900.0,105890.0,0.91055769]
[1762802929761,0.0012479,105900.0,105890.0,0.91055769]
[1762802930044,1e-08,105900.0,105890.0,0.91055769]
[1762802930923,1e-08,105900.0,105890.0,0.91255769]
[1762802931124,1e-08,105900.0,105890.0,0.91355769]
[1762802931702,0.0004689,105900.0,105890.0,0.91355769]
[1762802932101,1e-08,105900.0,105890.0,0.91355769]
[1762802934445,0.07604654,105920.0,105910.0,0.18883958]
[1762802934718,0.07604654,105920.0,105910.0,0.48296652]
[1762802934921,0.0765153,105920.0,105910.0,0.50569652]
[1762802937837,0.08533212,105920.0,105910.0,0.50569652]
[1762802938048,0.10296578,105920.0,105910.0,0.50569652]
[1762802941361,0.10296578,105920.0,105910.0,0.48296652]
[1762802941564,0.11455578,105920.0,105910.0,0.48296652]
[1762802942582,0.15408578,105920.0,105910.0,0.45672652]
[1762802942781,0.19026806,105920.0,105910.0,0.45672652]
[1762802943141,0.19026806,105920.0,105910.0,0.13483958]
[1762802943342,0.19026806,105920.0,105910.0,0.45672652]
[1762802944287,0.16655806,105920.0,105910.0,0.45672652]
[1762802944458,0.19026806,105920.0,105910.0,0.45672652]
[1762802945364,0.19026806,105920.0,105910.0,0.13483958]
[1762802945587,0.21144787,105920.0,105910.0,0.45672652]
[1762802949503,0.19026806,105920.0,105910.0,0.45672652]
[1762802950559,0.19027284,105920.0,105910.0,0.45672652]
[1762802951403,0.10297056,105920.0,105910.0,0.49685652]
[1762802951604,0.10297056,105920.0,105910.0,0.81874346]
[1762802952125,0.10297056,105920.0,105910.0,0.49685652]
[1762802952337,0.02732402,105920.0,105910.0,0.81874346]
[1762802953176,0.02732402,105920.0,105910.0,0.49685652]
[1762802953668,0.02732402,105920.0,105910.0,0.82074346]
[1762802953937,0.02732402,105920.0,105910.0,0.82174346]
[1762802954130,0.02732402,105920.0,105910.0,0.49985652]
[1762802955503,0.02732402,105920.0,105910.0,0.52822766]
[1762802956876,0.02732402,105920.0,105910.0,0.52622766]
[1762802957255,0.02732402,105920.0,105910.0,0.52822766]
[1762802958651,0.02732402,105920.0,105910.0,0.53022766]
[1762802960375,0.1146263,105920.0,105910.0,0.49009766]
[1762802960566,0.12877676,105920.0,105910.0,0.49009766]
[1762802960773,0.12877676,105920.0,105910.0,0.46172652]
[1762802960947,0.0909163,105920.0,105910.0,0.46172652]
[1762802961098,0.07844402,105920.0,105910.0,0.45872652]
[1762802961600,0.07844402,105920.0,105910.0,0.45672652]
[1762802962000,0.1146263,105920.0,105910.0,0.18983958]
[1762802962210,0.22372673,105920.0,105910.0,0.18983958]
[1762802962657,0.22372673,105920.0,105910.0,0.19183958]
[1762802962868,0.22372673,105920.0,105910.0,0.19083958]
[1762802963073,0.22372673,105920.0,105910.0,0.18883958]
[1762802963306,0.24408187,105920.0,105910.0,0.18983958]
[1762802963558,0.24408187,105920.0,105910.0,0.19083958]
[1762802963559,0.24408088,105920.0,105910.0,0.19083958]
[1762802964117,0.43290263,105920.0,105910.0,0.19083958]
[1762802964695,0.03618228,105910.0,105900.0,0.18885741]
[1762802964892,0.16271603,105910.0,105900.0,0.18885741]
[1762802965098,0.18306636,105910.0,105900.0,0.18885741]
[1762802965736,0.20210457,105910.0,105900.0,0.18885741]
[1762802965942,0.20210457,105910.0,105900.0,0.51374435]
[1762802966346,0.18175424,105910.0,105900.0,0.51374435]
[1762802966585,0.16271603,105910.0,105900.0,0.51374435]
[1762802967665,0.16271603,105910.0,105900.0,0.19185741]
[1762802968090,0.16271603,105910.0,105900.0,0.51274435]
[1762802968435,0.16271603,105910.0,105900.0,0.51074435]
[1762802970216,0.16295043,105910.0,105900.0,0.51074435]
[1762802972039,0.16295043,105910.0,105900.0,0.18885741]
[1762802972866,0.16295419,105910.0,105900.0,0.18885741]
[1762802974223,0.02669342,105910.0,105900.0,0.88417129]
[1762802974850,1e-08,105910.0,105900.0,0.88417129]
[1762802975065,1e-08,105910.0,105900.0,0.91254806]
[1762802975266,1e-08,105910.0,105900.0,0.91454806]
[1762802975490,1e-08,105910.0,105900.0,0.91554806]
[1762802978979,0.01209001,105910.0,105900.0,0.56949112]
[1762802979638,0.05317001,105910.0,105900.0,0.55305112]
[1762802980028,0.06623832,105910.0,105900.0,0.55305112]
[1762802980968,0.05317001,105910.0,105900.0,0.55305112]
[1762802981163,0.08935229,105910.0,105900.0,0.19185741]
[1762802981519,0.08935229,105910.0,105900.0,0.51374435]
[1762802981741,0.08935229,105910.0,105900.0,0.19185741]
[1762802983909,0.08935229,105910.0,105900.0,0.18985741]
[1762802984111,0.12593369,105910.0,105900.0,0.18885741]
[1762802984350,0.12593369,105910.0,105900.0,0.18985741]
[1762802986914,0.13475476,105910.0,105900.0,0.18985741]
[1762802987878,0.13475476,105910.0,105900.0,0.51174739]
[1762802988072,0.13475476,105910.0,105900.0,0.18985741]
[1762802988294,0.13475476,105910.0,105900.0,0.51174739]
[1762802993381,0.11182882,105900.0,105890.0,0.18886976]
[1762802993586,0.26839163,105900.0,105890.0,0.18886976]
[1762802994143,0.77913902,105900.0,105890.0,0.18886976]
[1762802994349,0.7994768,105900.0,105880.0,0.19833773]
[1762802994538,0.0506,105890.0,105880.0,0.12838562]
[1762802994769,0.05942108,105890.0,105880.0,0.12838562]
[1762802995034,0.14139579,105890.0,105880.0,0.12838562]
[1762802995305,0.17757807,105890.0,105880.0,0.12838562]
[1762802995493,0.17757807,105890.0,105880.0,0.4512756]
[1762802996663,0.17757807,105890.0,105880.0,0.4502756]
[1762802996866,0.19521684,105890.0,105880.0,0.4512756]
[1762802997181,0.19521684,105890.0,105880.0,0.4502756]
[1762802997753,0.11324213,105890.0,105880.0,0.4502756]
[1762802999991,0.30211737,105890.0,105880.0,4.79e-05]
[1762803000195,0.07564654,105880.0,105870.0,0.18889985]
[1762803000398,0.31879947,105880.0,105870.0,0.18889985]
[1762803000610,0.03618228,105870.0,105850.0,0.21089396]
[1762803000829,0.09522213,105870.0,105860.0,0.18892877]
[1762803001049,0.09522213,105870.0,105860.0,0.86025873]
[1762803001050,0.07242213,105870.0,105860.0,0.86025873]
[1762803001264,0.02645304,105870.0,105860.0,0.88423873]
[1762803001640,0.0176399,105870.0,105860.0,0.88423873]
[1762803001841,0.0176399,105870.0,105860.0,1.17512871]
[1762803002287,1e-08,105870.0,105860.0,1.49812871]
[1762803002502,0.07564654,105880.0,105870.0,0.18891092]
[1762803002703,0.07564654,105880.0,105870.0,0.84931088]
[1762803002921,0.07564654,105880.0,105870.0,0.5373509]
[1762803003122,0.07564654,105880.0,105870.0,0.5603309]
[1762803003338,0.07564654,105880.0,105870.0,0.88222088]
[1762803003970,0.07564654,105880.0,105870.0,0.88322088]
[1762803009189,0.13346882,105900.0,105890.0,0.18887524]
[1762803009365,0.13346882,105900.0,105890.0,0.52169522]
[1762803009366,0.14228614,105900.0,105890.0,0.52169522]
[1762803010426,0.14328614,105900.0,105890.0,0.52169522]
[1762803011093,0.13114614,105900.0,105890.0,0.53831522]
[1762803011273,0.13114614,105900.0,105890.0,0.56229522]
[1762803011480,0.13014614,105900.0,105890.0,0.56229522]
[1762803011886,0.14813583,105900.0,105890.0,0.56229522]
[1762803012306,0.13014614,105900.0,105890.0,0.56229522]
[1762803013642,0.13014614,105900.0,105890.0,0.53831522]
[1762803013823,0.14228614,105900.0,105890.0,0.53831522]
[1762803014038,0.14228614,105900.0,105890.0,0.46831521]
[1762803014261,0.1599335,105900.0,105890.0,0.46831521]
[1762803015128,0.21046642,105900.0,105890.0,0.45169521]
[1762803015737,0.1599335,105900.0,105890.0,0.46831521]
[1762803016472,0.1599335,105900.0,105890.0,0.49229521]
[1762803016674,0.1599335,105900.0,105890.0,0.46831521]
[1762803018458,0.11161122,105900.0,105890.0,0.49229521]
[1762803018801,0.11161683,105900.0,105890.0,0.49229521]
[1762803019203,0.11161683,105900.0,105890.0,0.46831521]
[1762803019406,0.17835359,105900.0,105890.0,0.44076521]
[1762803019649,0.15555359,105900.0,105890.0,0.44076521]
[1762803020112,0.15555359,105900.0,105890.0,0.45738521]
[1762803021071,0.13941683,105900.0,105890.0,0.3873852]
[1762803021506,0.12375683,105900.0,105890.0,0.3873852]
[1762803022300,0.11161683,105900.0,105890.0,0.4114452]
[1762803023691,0.10211683,105900.0,105890.0,0.4114452]
[1762803025166,0.10211683,105900.0,105890.0,0.73333518]
[1762803027713,0.16865451,105900.0,105890.0,0.3707652]
[1762803027874,0.20483679,105900.0,105890.0,0.3707652]
[1762803028258,0.20483679,105900.0,105890.0,0.51076522]
[1762803029616,0.52672677,105900.0,105890.0,0.18887524]
[1762803029794,0.71558418,105900.0,105890.0,0.18754227]
[1762803030191,0.3936942,105900.0,105890.0,0.18754227]
[1762803030356,0.71558418,105900.0,105890.0,0.18754227]
[1762803030560,0.03618228,105890.0,105880.0,0.51076684]
[1762803030755,0.11535257,105890.0,105880.0,0.51076684]
[1762803030969,0.15594199,105890.0,105880.0,0.51076684]
[1762803031592,0.15594199,105890.0,105880.0,0.18887686]
[1762803031884,0.15594199,105890.0,105880.0,0.51076684]
[1762803032083,0.15594199,105890.0,105880.0,0.51176684]
[1762803032319,0.15594199,105890.0,105880.0,0.18987686]
[1762803032439,0.11535257,105890.0,105880.0,0.18987686]
[1762803032995,0.62611779,105890.0,105880.0,0.001]
[1762803033170,0.62611779,105890.0,105880.0,0.002]
[1762803033491,0.72421952,105890.0,105880.0,0.002]
[1762803033690,0.42266543,105890.0,105880.0,0.19089308]
[1762803033913,0.75405541,105890.0,105880.0,0.001]
[1762803034116,0.75405541,105890.0,105880.0,0.18989308]
[1762803034363,0.74455541,105890.0,105880.0,0.001]
[1762803034563,1.16458341,105890.0,105880.0,0.001]
[1762803034755,0.03618228,105870.0,105860.0,0.16871055]
[1762803034929,0.21055784,105870.0,105860.0,0.16884641]
[1762803035134,0.39946876,105870.0,105860.0,0.16884641]
[1762803035876,0.21055784,105870.0,105860.0,0.16884641]
[1762803036093,0.21055784,105870.0,105860.0,0.49073639]
[1762803036505,0.21055784,105870.0,105860.0,0.17084641]
[1762803036677,0.21055784,105870.0,105860.0,0.42473639]
[1762803036879,0.21055784,105870.0,105860.0,0.42273639]
[1762803037332,0.21055784,105870.0,105860.0,0.42373639]
[1762803041532,0.18804911,105870.0,105860.0,0.75655637]
[1762803042159,0.18804911,105870.0,105860.0,0.43466639]
[1762803042510,0.18804911,105870.0,105860.0,0.42373639]
[1762803043661,0.18804911,105870.0,105860.0,0.01191764]
[1762803043860,0.18804911,105870.0,105860.0,0.52270923]
[1762803044925,0.22814971,105870.0,105860.0,0.52270923]
[1762803047058,0.22814971,105870.0,105860.0,0.52288657]
[1762803048599,0.22814971,105870.0,105860.0,0.53833657]
[1762803048600,0.11136683,105870.0,105860.0,0.53833657]
[1762803048859,0.0932934,105870.0,105860.0,0.56239657]
[1762803050252,0.1459934,105870.0,105860.0,0.52288657]
[1762803050847,0.1459934,105870.0,105860.0,0.45288656]
[1762803051915,0.1459934,105870.0,105860.0,0.13081924]
[1762803052088,0.1459934,105870.0,105860.0,0.46233299]
[1762803052926,0.1218734,105870.0,105860.0,0.46233299]
[1762803054010,0.13743774,105870.0,105860.0,0.46233299]
[1762803054841,0.15995626,105870.0,105860.0,0.46233299]
[1762803055453,0.16876446,105870.0,105860.0,0.46233299]
[1762803056648,0.20494674,105870.0,105860.0,0.46233299]
[1762803057279,0.20494674,105870.0,105860.0,0.14026567]
[1762803058027,0.20494674,105870.0,105860.0,0.10826567]
[1762803059470,0.39385766,105870.0,105860.0,0.10826567]
[1762803059678,0.20494674,105870.0,105860.0,0.10826567]
[1762803060509,0.17852316,105870.0,105860.0,0.10826567]
[1762803060678,0.22403769,105870.0,105860.0,0.10826567]
[1762803060891,0.20499948,105870.0,105860.0,0.10826567]
[1762803061129,0.3939104,105870.0,105860.0,0.10826567]
[1762803061683,0.20499948,105870.0,105860.0,0.10826567]
[1762803062843,0.18943514,105870.0,105860.0,0.43033299]
[1762803064786,0.18946833,105870.0,105860.0,0.43033299]
[1762803064980,0.18946833,105870.0,105860.0,0.37833299]
[1762803066955,0.15053833,105870.0,105860.0,0.41781299]
[1762803067403,0.15053833,105870.0,105860.0,0.39414299]
[1762803067839,0.18829833,105870.0,105860.0,0.37833299]
[1762803068277,0.22842416,105870.0,105860.0,0.37833299]
[1762803068493,0.22842416,105870.0,105860.0,0.05626567]
[1762803071639,0.2487973,105870.0,105860.0,0.05626567]
[1762803072079,0.03618228,105860.0,105850.0,0.53139127]
[1762803072298,0.11234965,105860.0,105850.0,0.53139127]
[1762803073408,0.11234965,105860.0,105850.0,0.53239127]
[1762803073623,0.11234965,105860.0,105850.0,0.53439127]
[1762803074716,0.08979965,105860.0,105850.0,0.53439127]
[1762803074932,0.08980237,105860.0,105850.0,0.53439127]
[1762803075188,0.11235237,105860.0,105850.0,0.53439127]
[1762803076975,0.11387458,105860.0,105850.0,0.53439127]
[1762803077392,0.13642458,105860.0,105850.0,0.53439127]
[1762803077823,0.1364307,105860.0,105850.0,0.53439127]
[1762803078245,0.1364307,105860.0,105850.0,0.52346127]
[1762803078458,0.1364307,105860.0,105850.0,0.20139395]
[1762803078888,0.32535947,105860.0,105850.0,0.20139395]
[1762803079118,0.1364307,105860.0,105850.0,0.20139395]
[1762803079712,0.32535947,105860.0,105850.0,0.20139395]
[1762803080002,0.1364307,105860.0,105850.0,0.19939395]
[1762803087663,0.1364307,105860.0,105850.0,0.52146127]
[1762803087898,0.11235849,105860.0,105850.0,0.52146127]
[1762803088554,0.11235849,105860.0,105850.0,0.19939395]
[1762803090818,0.11235849,105860.0,105850.0,0.52146127]
[1762803095147,0.30128726,105860.0,105850.0,0.19939395]
[1762803095354,0.36693372,105860.0,105850.0,0.19939395]
[1762803097494,0.36693372,105860.0,105850.0,0.001]
[1762803097701,0.90937153,105860.0,105850.0,0.001]
[1762803097876,1.93635179,105860.0,105850.0,0.001]
[1762803098110,1.97177551,105860.0,105850.0,0.001]
[1762803098313,2.00557387,105860.0,105850.0,0.001]
[1762803098486,0.03618228,105840.0,105830.0,0.0009384]
[1762803098716,0.23016164,105840.0,105830.0,0.18992073]
[1762803098927,1.32070958,105840.0,105830.0,0.0009384]
[1762803099128,1.14686919,105840.0,105830.0,0.0009384]
[1762803099302,1.14686919,105840.0,105830.0,0.18898233]
[1762803099523,1.18050534,105840.0,105830.0,0.18898233]
[1762803099729,1.14686919,105840.0,105830.0,0.18898233]
[1762803100138,0.82480187,105840.0,105830.0,0.18898233]
[1762803100765,0.82475847,105840.0,105830.0,0.18898233]
[1762803101106,0.82575847,105840.0,105830.0,0.18898233]
[1762803101618,0.82572677,105840.0,105830.0,0.18898233]
[1762803102274,1.33675856,105840.0,105820.0,0.18898888]
[1762803102473,0.05204,105830.0,105820.0,0.18898888]
[1762803102732,0.17661668,105830.0,105820.0,0.18898888]
[1762803103055,0.20502185,105830.0,105820.0,0.18898888]
[1762803106343,0.20502185,105830.0,105820.0,0.16698888]
[1762803107999,0.20502185,105830.0,105820.0,0.16722358]
[1762803110653,0.20502185,105830.0,105820.0,0.18923488]
[1762803110866,0.88657632,105830.0,105820.0,0.0002347]
[1762803111067,0.03618228,105810.0,105800.0,0.0004]
[1762803111305,0.45492586,105810.0,105800.0,0.0004]
[1762803111514,0.76838765,105810.0,105800.0,0.0004]
[1762803111729,0.89532568,105810.0,105800.0,0.0004]
[1762803111937,0.89532568,105810.0,105800.0,0.18943591]
[1762803112343,0.89532568,105810.0,105800.0,0.19091544]
[1762803112754,0.89532568,105810.0,105800.0,0.00187953]
[1762803113187,0.89532568,105810.0,105800.0,0.19091544]
[1762803113389,0.57295349,105810.0,105800.0,0.12091543]
[1762803113593,0.89532568,105810.0,105800.0,0.12091543]
[1762803113797,0.89532568,105810.0,105800.0,0.12191543]
[1762803114183,0.89532568,105810.0,105800.0,0.12091543]
[1762803116198,0.57295349,105810.0,105800.0,0.12091543]
[1762803116382,0.89532568,105810.0,105800.0,0.12091543]
[1762803116590,0.89532568,105810.0,105800.0,0.12138492]
[1762803117191,0.57295349,105810.0,105800.0,0.12138492]
[1762803117401,0.54933526,105810.0,105800.0,0.12138492]
[1762803117598,0.87170745,105810.0,105800.0,0.12138492]
[1762803119340,0.54933526,105810.0,105800.0,0.12138492]
[1762803119557,0.54933526,105810.0,105800.0,0.44375711]
[1762803120484,0.54933526,105810.0,105800.0,0.12138492]
[1762803120712,0.63756401,105810.0,105800.0,0.06138492]
[1762803120936,0.9599362,105810.0,105800.0,0.00046949]
[1762803121351,0.63756401,105810.0,105800.0,0.1895054]
[1762803121590,0.9599362,105810.0,105800.0,0.1895054]
[1762803121813,0.9599362,105810.0,105800.0,0.00046949]
[1762803121999,0.9599362,105810.0,105800.0,0.1895054]
[1762803122208,0.99359296,105810.0,105800.0,0.1895054]
[1762803122417,0.63756401,105810.0,105800.0,0.1895054]
[1762803122623,0.47368872,105810.0,105800.0,0.51187759]
[1762803123330,0.54933526,105810.0,105800.0,0.51187759]
[1762803124414,0.54933526,105810.0,105800.0,0.84517978]
[1762803124638,0.11162149,105810.0,105800.0,0.88530978]
[1762803125265,0.11162149,105810.0,105800.0,0.86176978]
[1762803125472,0.12386149,105810.0,105800.0,0.86176978]
[1762803125692,0.13936149,105810.0,105800.0,0.86176978]
[1762803125923,0.16198149,105810.0,105800.0,0.84517978]
[1762803126128,0.1035911,105810.0,105800.0,0.84517978]
[1762803126344,0.1035911,105810.0,105800.0,0.51187759]
[1762803127612,0.06371495,105810.0,105800.0,0.77624978]
[1762803128020,0.03597495,105810.0,105800.0,0.81637978]
[1762803128168,0.11162149,105810.0,105800.0,0.81637978]
[1762803128590,0.11162149,105810.0,105800.0,0.79283978]
[1762803128792,0.12386149,105810.0,105800.0,0.79283978]
[1762803129607,0.16198149,105810.0,105800.0,0.77624978]
[1762803130643,0.13936149,105810.0,105800.0,0.77624978]
[1762803130803,0.13936149,105810.0,105800.0,0.81637978]
[1762803130804,0.11162149,105810.0,105800.0,0.81637978]
[1762803131207,0.11162149,105810.0,105800.0,0.81203472]
[1762803131990,0.10212149,105810.0,105800.0,0.81203472]
[1762803133930,0.10212149,105810.0,105800.0,0.81303472]
[1762803134708,0.10212149,105810.0,105790.0,0.2003795]
[1762803134709,0.48628983,105810.0,105790.0,0.1894495]
[1762803134906,0.08654228,105800.0,105790.0,0.0004]
[1762803135106,0.43538942,105800.0,105790.0,0.0004]
[1762803135332,0.77869974,105800.0,105790.0,0.0004]
[1762803135536,0.86909221,105800.0,105790.0,0.0004]
[1762803136376,0.54672002,105800.0,105790.0,0.0004]
[1762803136770,0.45632755,105800.0,105790.0,0.18945378]
[1762803137330,0.77869974,105800.0,105790.0,0.0004]
[1762803137576,0.13332755,105800.0,105790.0,0.51182597]
[1762803137833,0.05421495,105800.0,105790.0,0.51182597]
[1762803139076,0.07683495,105800.0,105790.0,0.51182597]
[1762803139492,0.07683495,105800.0,105790.0,0.0004]
[1762803139706,1.16886881,105800.0,105790.0,0.0004]
[1762803139914,0.39667447,105790.0,105780.0,0.18907165]
[1762803140107,0.49879596,105790.0,105780.0,0.18907165]
[1762803140307,0.19673235,105790.0,105780.0,0.18907165]
[1762803140519,0.61720627,105790.0,105780.0,0.18907165]
[1762803140954,0.29483408,105790.0,105780.0,0.18954128]
[1762803141188,0.29483408,105790.0,105780.0,0.19054128]
[1762803141389,0.2947984,105790.0,105780.0,0.19054128]
[1762803143893,0.66143728,105790.0,105770.0,0.19842898]
[1762803144092,0.07451228,105780.0,105770.0,0.19842898]
[1762803144315,0.10095155,105780.0,105770.0,0.19842898]
[1762803144540,0.16365664,105780.0,105770.0,0.19866384]
[1762803144945,0.10095155,105780.0,105770.0,0.19866384]
[1762803145539,0.10993155,105780.0,105770.0,0.19866384]
[1762803145744,0.10993155,105780.0,105770.0,0.18932439]
[1762803146006,0.49560864,105780.0,105770.0,0.19032439]
[1762803146216,0.47657043,105780.0,105770.0,0.19032439]
[1762803146418,0.17586142,105780.0,105760.0,0.1988974]
[1762803146585,0.16184882,105770.0,105760.0,0.0004]
[1762803146754,0.18828809,105770.0,105760.0,0.0004]
[1762803146954,0.27127177,105770.0,105750.0,0.18085759]
[1762803147161,0.08620228,105760.0,105750.0,0.18085759]
[1762803147395,0.11264155,105760.0,105750.0,0.18085759]
[1762803147768,0.09009155,105760.0,105750.0,0.18099352]
[1762803147967,0.07431155,105760.0,105750.0,0.19708352]
[1762803148187,0.01762618,105760.0,105750.0,0.5881124]
[1762803149250,0.01762618,105760.0,105750.0,0.5891124]
[1762803149461,0.01762618,105760.0,105750.0,0.5911124]
[1762803150096,0.01762618,105760.0,105750.0,0.5667224]
[1762803150512,0.01762618,105760.0,105750.0,0.20008352]
[1762803151955,0.01762618,105760.0,105750.0,0.5911124]
[1762803152407,0.01762618,105760.0,105750.0,0.5898024]
[1762803152634,0.08733654,105770.0,105760.0,0.18910741]
[1762803152835,0.10492115,105770.0,105760.0,0.18910741]
[1762803153047,0.12070115,105770.0,105760.0,0.18910741]
[1762803153272,0.14325115,105770.0,105760.0,0.18910741]
[1762803154305,0.14325115,105770.0,105760.0,0.16110741]
[1762803154939,0.14325115,105770.0,105760.0,0.16210741]
[1762803156868,0.16868548,105770.0,105760.0,0.16210741]
[1762803157401,0.22390597,105770.0,105760.0,0.16210741]
[1762803157627,0.20486776,105770.0,105760.0,0.16210741]
[1762803158038,0.20486776,105770.0,105760.0,0.16234231]
[1762803161022,0.52760431,105770.0,105760.0,0.16234231]
[1762803161279,0.53640382,105770.0,105760.0,0.16234231]
[1762803161471,0.53640382,105770.0,105760.0,0.1273423]
[1762803164939,0.21366727,105770.0,105760.0,0.1273423]
[1762803165149,0.53640382,105770.0,105760.0,0.1273423]
[1762803167126,0.21366727,105770.0,105760.0,0.1273423]
[1762803167329,0.53640382,105770.0,105760.0,0.1273423]
[1762803168474,0.53640382,105770.0,105760.0,0.0963423]
[1762803170072,0.21366727,105770.0,105760.0,0.0963423]
[1762803170279,0.56619073,105770.0,105760.0,0.19034231]
[1762803170532,0.59597796,105770.0,105760.0,0.19034231]
[1762803170741,0.53640382,105770.0,105760.0,0.19034231]
[1762803170955,0.53645376,105770.0,105760.0,0.19034231]
[1762803171385,0.55678324,105770.0,105760.0,0.19034231]
[1762803171631,0.23399675,105770.0,105760.0,0.19034231]
[1762803175557,0.23399675,105770.0,105760.0,0.15734231]
[1762803176746,0.55688678,105770.0,105760.0,0.18910741]
[1762803182894,0.55688678,105770.0,105760.0,0.15310741]
[1762803184162,0.55688678,105770.0,105760.0,0.09192037]
[1762803185797,0.23410029,105770.0,105760.0,0.09192037]
[1762803186642,0.03618228,105760.0,105750.0,0.17968352]
[1762803186898,0.03618228,105760.0,105750.0,0.00013593]
[1762803186899,0.69580334,105760.0,105750.0,0.00013593]
[1762803187115,0.43482882,105750.0,105740.0,0.0002]
[1762803187325,0.43482882,105750.0,105740.0,0.18943388]
[1762803187326,0.85547297,105750.0,105740.0,0.18943388]
[1762803187534,0.85547297,105750.0,105740.0,9.07e-05]
[1762803187749,0.03618228,105740.0,105730.0,0.19897167]
[1762803187961,0.03618228,105740.0,105730.0,0.19911538]
[1762803187962,0.41184643,105740.0,105730.0,0.19911538]
[1762803188168,0.63649643,105740.0,105730.0,0.18970478]